fUST/lending_fUST_20250618
["ID","MTS","AMOUNT","RATE_DAILY","PERIOD"]
[366357023,1750207542112,-2070.34363449,0.00019101,2]
[366357024,1750207589051,-291.41053958,0.0001891,2]
[366357025,1750207608738,-593.3,0.0001891,2]
[366357026,1750207635097,-4115.28946042,0.0001891,2]
[366357027,1750207635121,-150.0,0.00019194,2]
[366357028,1750207635142,-205.06800256,0.00019294,2]
[366357029,1750207635164,-419.67284454,0.00020291,2]
[366357030,1750207641144,-83.46715546,0.00020291,2]
[366357031,1750207641171,-501.29508421,0.000209,4]
[366357032,1750207641192,-630.2124192,0.00020916,2]
[366357033,1750207641219,-501.29508395,0.00021072,4]
[366357034,1750207641244,-501.29508395,0.00021245,4]
[366357035,1750207641269,-501.29508395,0.00021417,5]
[366357036,1750207641295,-501.29508395,0.0002159,5]
[366357037,1750207641320,-501.29508395,0.00021762,5]
[366357038,1750207641341,-161.77623661,0.00021817,2]
[366357039,1750207641361,-257.68048722,0.000219,2]
[366357040,1750207641381,-300.0,0.00021914,2]
[366357041,1750207641402,-300.0,0.00021915,2]
[366357042,1750207641424,-20584.12626127,0.00021916,2]
[366357043,1750207641444,-224.12765848,0.00021917,6]
[366357044,1750207641465,-430.01611677,0.00021917,6]
[366357045,1750207641484,-460.0,0.00021917,6]
[366357046,1750207641504,-201.30607031,0.00021917,6]
[366357047,1750207641524,-460.0,0.00021917,6]
[366357048,1750207641545,-460.0,0.00021917,6]
[366357049,1750207641566,-460.0,0.00021917,6]
[366357050,1750207641586,-460.0,0.00021917,6]
[366357051,1750207641607,-460.0,0.00021917,6]
[366357052,1750207641629,-460.0,0.00021917,6]
[366357053,1750207641651,-460.0,0.00021917,6]
[366357054,1750207641672,-460.0,0.00021917,6]
[366357055,1750207641692,-460.0,0.00021917,6]
[366357056,1750207641716,-460.0,0.00021917,6]
[366357057,1750207641737,-593.15064607,0.00021917,6]
[366357058,1750207641758,-430.0,0.00021917,6]
[366357059,1750207641778,-420.0,0.00021917,6]
[366357060,1750207641801,-558.97,0.00021917,6]
[366357061,1750207641821,-460.0,0.00021917,6]
[366357062,1750207641842,-460.0,0.00021917,6]
[366357063,1750207641864,-460.0,0.00021917,6]
[366357064,1750207641886,-460.0,0.00021917,6]
[366357065,1750207641907,-460.0,0.00021917,6]
[366357066,1750207641928,-460.0,0.00021917,6]
[366357067,1750207641950,-460.0,0.00021917,6]
[366357068,1750207641973,-460.0,0.00021917,6]
[366357069,1750207641995,-430.0,0.00021917,6]
[366357070,1750207642017,-460.0,0.00021917,6]
[366357071,1750207642038,-460.0,0.00021917,6]
[366357072,1750207642058,-287.30133394,0.00021917,6]
[366357073,1750207642081,-460.0,0.00021917,6]
[366357074,1750207642103,-582.25277355,0.00021918,6]
[366357075,1750207642128,-460.0,0.00021918,6]
[366357076,1750207642150,-469.15,0.00021918,6]
[366357077,1750207642172,-464.65,0.00021918,6]
[366357078,1750207642195,-491.51,0.00021918,6]
[366357079,1750207642216,-504.94440166,0.00021919,6]
[366357080,1750207642236,-430.0,0.00021919,6]
[366357081,1750207642257,-460.0,0.00021919,6]
[366357082,1750207642279,-460.0,0.00021919,6]
[366357083,1750207642301,-440.0,0.00021919,6]
[366357084,1750207642322,-376.65043904,0.00021919,6]
[366357085,1750207642343,-460.0,0.00021919,6]
[366357086,1750207642364,-460.0,0.00021919,6]
[366357087,1750207642385,-430.0,0.00021919,6]
[366357088,1750207642405,-420.0,0.00021919,6]
[366357089,1750207642427,-460.0,0.00021919,6]
[366357090,1750207642449,-460.0,0.00021919,6]
[366357091,1750207642471,-460.0,0.00021919,6]
[366357092,1750207642492,-527.74761476,0.00021919,6]
[366357093,1750207642512,-430.0,0.00021919,6]
[366357094,1750207642533,-430.0,0.00021919,6]
[366357095,1750207642555,-500.0,0.00021919,6]
[366357096,1750207642576,-430.0,0.00021919,6]
[366357097,1750207642596,-338.4479191,0.00021919,6]
[366357098,1750207642617,-430.0,0.00021919,6]
[366357099,1750207642638,-430.0,0.00021919,6]
[366357100,1750207642659,-430.0,0.00021919,6]
[366357101,1750207642680,-430.0,0.00021919,6]
[366357102,1750207642704,-460.0,0.00021919,6]
[366357103,1750207642726,-430.0,0.00021919,6]
[366357104,1750207642748,-460.0,0.00021919,6]
[366357105,1750207642785,-501.29508395,0.00021934,6]
[366357106,1750207642809,-151.0,0.00022,2]
[366357107,1750207642830,-152.0,0.00022,2]
[366357108,1750207642851,-390.0,0.00022027,6]
[366357109,1750207642873,-400.0,0.00022027,6]
[366357110,1750207642896,-460.0,0.00022027,6]
[366357111,1750207642919,-390.0,0.00022027,6]
[366357112,1750207642940,-276.97446327,0.00022027,6]
[366357113,1750207642961,-399.18896769,0.00022027,6]
[366357114,1750207642984,-537.945209,0.00022027,6]
[366357115,1750207643006,-460.0,0.00022027,6]
[366357116,1750207643030,-165.32218886,0.00022027,6]
[366357117,1750207643052,-460.0,0.00022027,6]
[366357118,1750207643075,-460.0,0.00022027,6]
[366357119,1750207643098,-558.97,0.00022027,6]
[366357120,1750207643125,-410.0,0.00022027,6]
[366357121,1750207643148,-460.0,0.00022027,6]
[366357122,1750207643171,-460.0,0.00022027,6]
[366357123,1750207643193,-460.0,0.00022027,6]
[366357124,1750207643217,-460.0,0.00022027,6]
[366357125,1750207643240,-460.0,0.00022027,6]
[366357126,1750207643263,-460.0,0.00022027,6]
[366357127,1750207643286,-460.0,0.00022027,6]
[366357128,1750207643308,-506.73359417,0.00022027,6]
[366357129,1750207643331,-460.0,0.00022027,6]
[366357130,1750207643353,-500.0,0.00022028,2]
[366357131,1750207643376,-617.95455614,0.00022028,2]
[366357132,1750207643399,-238.61958145,0.00022028,2]
[366357133,1750207643422,-460.0,0.00022029,6]
[366357134,1750207643443,-292.40205414,0.00022029,6]
[366357135,1750207643465,-460.0,0.00022029,6]
[366357136,1750207643490,-460.0,0.00022029,6]
[366357137,1750207643512,-415.46472631,0.00022029,6]
[366357138,1750207643535,-460.0,0.00022029,6]
[366357139,1750207643559,-460.0,0.00022029,6]
[366357140,1750207643582,-460.0,0.00022029,6]
[366357141,1750207643603,-400.0,0.00022029,6]
[366357142,1750207643624,-344.31115003,0.00022034,2]
[366357143,1750207643654,-501.29508395,0.00022107,6]
[366357144,1750207643677,-1006.28,0.00022135,2]
[366357145,1750207643701,-500.0,0.00022135,6]
[366357146,1750207643724,-460.0,0.00022136,6]
[366357147,1750207643748,-460.0,0.00022136,6]
[366357148,1750207643771,-460.0,0.00022136,6]
[366357149,1750207643793,-460.0,0.00022136,6]
[366357150,1750207643817,-558.97,0.00022136,6]
[366357151,1750207643841,-460.0,0.00022136,6]
[366357152,1750207643863,-460.0,0.00022136,6]
[366357153,1750207643885,-460.0,0.00022136,6]
[366357154,1750207643907,-370.0,0.00022136,6]
[366357155,1750207643930,-460.0,0.00022136,6]
[366357156,1750207643953,-460.0,0.00022136,6]
[366357157,1750207643976,-460.0,0.00022136,6]
[366357158,1750207644000,-460.0,0.00022136,6]
[366357159,1750207644026,-460.0,0.00022138,6]
[366357160,1750207644048,-460.0,0.00022138,6]
[366357161,1750207644070,-390.0,0.00022138,6]
[366357162,1750207644091,-441.6063874,0.00022138,6]
[366357163,1750207644115,-460.0,0.00022138,6]
[366357164,1750207644138,-460.0,0.00022138,6]
[366357165,1750207644160,-501.63539255,0.00022188,2]
[366357166,1750207644182,-500.0,0.00022229,2]
[366357167,1750207644206,-387.44324608,0.00022246,6]
[366357168,1750207644227,-460.0,0.00022246,6]
[366357169,1750207644249,-460.0,0.00022246,6]
[366357170,1750207644271,-217.11675586,0.00022246,6]
[366357171,1750207644293,-558.97,0.00022246,6]
[366357172,1750207644317,-460.0,0.00022246,6]
[366357173,1750207644338,-460.0,0.00022246,6]
[366357174,1750207644360,-460.0,0.00022246,6]
[366357175,1750207644382,-460.0,0.00022246,6]
[366357176,1750207644527,-460.0,0.00022246,6]
[366357177,1750207644550,-460.0,0.00022246,6]
[366357178,1750207644573,-460.0,0.00022246,6]
[366357179,1750207644595,-423.75,0.00022248,6]
[366357180,1750207644616,-460.0,0.00022248,6]
[366357181,1750207644637,-370.0,0.00022248,6]
[366357182,1750207644658,-460.0,0.00022248,6]
[366357183,1750207644685,-501.29508395,0.00022279,6]
[366357184,1750207644706,-460.0,0.00022356,6]
[366357185,1750207644729,-460.0,0.00022356,6]
[366357186,1750207644752,-558.97,0.00022356,6]
[366357187,1750207644775,-460.0,0.00022356,6]
[366357188,1750207644798,-350.0,0.00022356,6]
[366357189,1750207644820,-330.0,0.00022356,6]
[366357190,1750207644842,-460.0,0.00022356,6]
[366357191,1750207644865,-460.0,0.00022356,6]
[366357192,1750207644887,-460.0,0.00022356,6]
[366357193,1750207644910,-460.0,0.00022356,6]
[366357194,1750207644931,-460.0,0.00022358,6]
[366357195,1750207644952,-460.0,0.00022358,6]
[366357196,1750207644973,-500.0,0.00022387,6]
[366357197,1750207644993,-5000.0,0.00022388,2]
[366357198,1750207645015,-207.4,0.00022388,2]
[366357199,1750207645041,-501.29508395,0.00022452,7]
[366357200,1750207645063,-558.97,0.00022465,6]
[366357201,1750207645092,-460.0,0.00022465,6]
[366357202,1750207645119,-460.0,0.00022465,6]
[366357203,1750207645142,-460.0,0.00022465,6]
[366357204,1750207645165,-161.77623661,0.00022465,2]
[366357205,1750207645187,-460.0,0.00022467,6]
[366357206,1750207645210,-558.97,0.00022575,6]
[366357207,1750207645236,-460.0,0.00022575,6]
[366357208,1750207645261,-564.33026371,0.00022575,6]
[366357209,1750207645285,-460.0,0.00022575,6]
[366357210,1750207645312,-501.29508395,0.00022624,7]
[366357211,1750207645336,-558.97,0.00022684,6]
[366357212,1750207645359,-460.0,0.00022684,6]
[366357213,1750207645382,-460.0,0.00022684,6]
[366357214,1750207645405,-558.97,0.00022794,6]
[366357215,1750207645430,-209.89970069,0.00022794,6]
[366357216,1750207645453,-460.0,0.00022794,6]
[366357217,1750207645482,-501.29508395,0.00022797,7]
[366357218,1750207645506,-460.0,0.00022903,6]
[366357219,1750207645531,-460.0,0.00022903,6]
[366357220,1750207645555,-558.97,0.00022904,6]
[366357221,1750207645579,-460.0,0.00022904,6]
[366357222,1750207645600,-5000.0,0.00022936,2]
[366357223,1750207645629,-501.29508395,0.00022969,8]
[366357224,1750207645650,-386.71481156,0.00023012,6]
[366357225,1750207645673,-558.97,0.00023013,6]
[366357226,1750207645696,-460.0,0.00023013,6]
[366357227,1750207645723,-460.0,0.00023013,6]
[366357228,1750207645746,-161.77623661,0.00023113,2]
[366357229,1750207645769,-160.0,0.00023121,2]
[366357230,1750207645794,-558.97,0.00023123,6]
[366357231,1750207645819,-460.0,0.00023123,6]
[366357232,1750207645843,-460.0,0.00023123,6]
[366357233,1750207645873,-501.29508395,0.00023141,8]
[366357234,1750207645896,-558.97,0.00023232,6]
[366357235,1750207645920,-460.0,0.00023232,6]
[366357236,1750207645943,-460.0,0.00023232,6]
[366357237,1750207645973,-501.29508395,0.00023314,9]
[366357238,1750207645995,-500.0,0.00023315,6]
[366357239,1750207646019,-558.97,0.00023342,6]
[366357240,1750207646042,-460.0,0.00023342,6]
[366357241,1750207646064,-500.0,0.00023342,6]
[366357242,1750207646085,-500.0,0.0002337,6]
[366357243,1750207646106,-500.0,0.00023383,2]
[366357244,1750207646134,-500.0,0.00023397,6]
[366357245,1750207646156,-500.0,0.00023425,6]
[366357246,1750207646180,-460.0,0.00023451,6]
[366357247,1750207646204,-500.0,0.00023452,6]
[366357248,1750207646230,-558.97,0.00023452,6]
[366357249,1750207646251,-500.0,0.00023479,6]
[366357250,1750207646279,-501.29508395,0.00023486,9]
[366357251,1750207646300,-12540.12310952,0.00023498,2]
[366357252,1750207646321,-835.82910252,0.00023498,2]
[366357253,1750207646341,-160.0,0.00023498,2]
[366357254,1750207646362,-160.0,0.00023498,2]
[366357255,1750207646382,-160.0,0.00023498,2]
[366357256,1750207646402,-424.62582665,0.00023498,2]
[366357257,1750207646422,-401.19998337,0.00023507,6]
[366357258,1750207646442,-431.1523617,0.00023519,6]
[366357259,1750207646464,-669.074302,0.0002352,3]
[366357260,1750207646485,-306.0,0.00023534,2]
[366357261,1750207646505,-573.8932911,0.00023534,2]
[366357262,1750207646528,-558.97,0.00023561,6]
[366357263,1750207646552,-460.0,0.00023561,6]
[366357264,1750207646574,-158.80186322,0.00023589,2]
[366357265,1750207646601,-501.29508395,0.00023659,9]
[366357266,1750207646627,-460.0,0.0002367,6]
[366357267,1750207646651,-558.97,0.00023671,6]
[366357268,1750207646673,-215.0738,0.00023757,2]
[366357269,1750207646693,-229.94211981,0.00023758,2]
[366357270,1750207646714,-213.39869953,0.00023758,2]
[366357271,1750207646736,-161.77623661,0.00023762,2]
[366357272,1750207646758,-558.97,0.0002378,6]
[366357273,1750207646781,-460.0,0.0002378,6]
[366357274,1750207646803,-420.0,0.00023815,2]
[366357275,1750207646824,-420.0,0.00023816,2]
[366357276,1750207646844,-500.0,0.00023819,2]
[366357277,1750207646867,-276.0,0.00023826,2]
[366357278,1750207646894,-501.29508395,0.00023831,10]
[366357279,1750207646916,-276.0,0.00023863,2]
[366357280,1750207646939,-558.97,0.0002389,6]
[366357281,1750207646961,-460.0,0.0002389,6]
[366357282,1750207646982,-158.80186322,0.0002389,2]
[366357283,1750207647002,-500.0,0.00023973,2]
[366357284,1750207647022,-510.84760132,0.00023973,2]
[366357285,1750207647041,-500.0,0.00023973,2]
[366357286,1750207647062,-500.0,0.00023973,2]
[366357287,1750207647083,-500.0,0.00023973,2]
[366357288,1750207647102,-500.0,0.00023973,2]
[366357289,1750207647128,-509.08084065,0.00023973,2]
[366357290,1750207647148,-500.0,0.00023973,2]
[366357291,1750207647170,-500.0,0.00023973,2]
[366357292,1750207647191,-500.0,0.00023973,2]
[366357293,1750207647211,-500.0,0.00023973,2]
[366357294,1750207647231,-502.17264723,0.00023973,2]
[366357295,1750207647250,-500.0,0.00023973,2]
[366357296,1750207647271,-600.0,0.00023973,2]
[366357297,1750207647292,-500.0,0.00023973,2]
[366357298,1750207647312,-500.0,0.00023973,2]
[366357299,1750207647332,-500.0,0.00023973,2]
[366357300,1750207647352,-500.0,0.00023973,2]
[366357301,1750207647373,-1509.42,0.0002398,2]
[366357302,1750207647395,-168.0,0.00023984,2]
[366357303,1750207647416,-151.0,0.00023994,7]
[366357304,1750207647438,-623.13672253,0.00023999,2]
[366357305,1750207647462,-460.0,0.00023999,6]
[366357306,1750207647485,-6804.15795001,0.00024,2]
[366357307,1750207647508,-3833.58452308,0.00024,2]
[366357308,1750207647529,-62717.79385259,0.00024,7]
[366357309,1750207647633,-460.0,0.00023342,6]
[366357310,1750207647757,-151.12866327,0.00024,7]
[366357311,1750207769111,-450.8,0.00020306,2]
[366357314,1750207832424,-467.9,0.00020299,2]
[366357315,1750207832434,-3465.60032125,0.00021808,2]
[366357316,1750207832476,-1534.39967875,0.00021808,2]
[366357317,1750207832486,-200.51803358,0.000219,6]
[366357318,1750207832495,-171.78699148,0.000219,2]
[366357319,1750207832505,-430.0,0.00021917,6]
[366357320,1750207832513,-420.00476985,0.00021917,6]
[366357321,1750207832522,-460.0,0.00021917,6]
[366357322,1750207832531,-460.0,0.00021917,6]
[366357323,1750207832541,-460.0,0.00021919,6]
[366357324,1750207832551,-460.0,0.00021919,6]
[366357325,1750207832561,-432.13090303,0.00021919,6]
[366357326,1750207832571,-440.0,0.00021919,6]
[366357327,1750207832581,-430.0,0.00021919,6]
[366357328,1750207832591,-450.0,0.00021919,6]
[366357329,1750207832601,-460.0,0.00022027,6]
[366357330,1750207832611,-460.0,0.00022029,6]
[366357331,1750207832620,-410.0,0.00022029,6]
[366357333,1750207832630,-200.51803358,0.00022038,6]
[366357335,1750207832640,-430.0,0.00022135,6]
[366357337,1750207832650,-430.0,0.00022135,6]
[366357339,1750207832659,-430.0,0.00022135,6]
[366357341,1750207832669,-430.0,0.00022135,6]
[366357342,1750207832678,-460.0,0.00022136,6]
[366357344,1750207832687,-460.0,0.00022138,6]
[366357345,1750207832696,-935.79,0.00022144,2]
[366357347,1750207832706,-200.51803358,0.00022176,6]
[366357349,1750207832715,-460.0,0.00022246,6]
[366357351,1750207832725,-460.0,0.00022248,6]
[366357353,1750207832734,-200.51803358,0.00022314,7]
[366357355,1750207832744,-460.0,0.00022356,6]
[366357357,1750207832753,-460.0,0.00022358,6]
[366357359,1750207832763,-200.51803358,0.00022452,7]
[366357361,1750207832772,-495.05264741,0.00022465,6]
[366357363,1750207832781,-200.51803358,0.0002259,7]
[366357365,1750207832791,-200.51803358,0.00022728,7]
[366357367,1750207832800,-200.51803358,0.00022866,8]
[366357369,1750207832810,-200.51803358,0.00023003,8]
[366357371,1750207832820,-200.51803358,0.00023141,8]
[366357373,1750207832829,-200.51803358,0.00023279,8]
[366357375,1750207832839,-200.51803358,0.00023417,9]
[366357377,1750207832848,-460.0,0.00023452,6]
[366357379,1750207832857,-229.94211981,0.00023494,2]
[366357381,1750207832867,-213.39869953,0.00023494,2]
[366357383,1750207832876,-573.492259,0.0002352,3]
[366357385,1750207832886,-200.51803358,0.00023555,9]
[366357387,1750207832896,-460.0,0.00023561,6]
[366357389,1750207832905,-460.0,0.00023671,6]
[366357391,1750207832914,-200.51803358,0.00023693,9]
[366357393,1750207832923,-460.0,0.0002378,6]
[366357395,1750207832932,-200.51803358,0.00023831,10]
[366357397,1750207832941,-460.0,0.0002389,6]
[366357399,1750207832950,-161.77623661,0.000239,2]
[366357401,1750207832959,-200.51803358,0.00023969,10]
[366357403,1750207832969,-207.4,0.00023986,2]
[366357404,1750207832978,-1403.69,0.00023989,2]
[366357407,1750207832988,-3964.69621,0.00023999,2]
[366357408,1750207832997,-3402.07897501,0.00024,2]
[366357410,1750207833006,-1916.79226154,0.00024,2]
[366357412,1750207833016,-59393.56437138,0.00024,7]
[366357487,1750207840997,-5000.0,0.00020096,2]
[366357488,1750207841006,-103616.11242679,0.00024,7]
[366357489,1750207841023,-13705.47503123,0.00024,7]
[366357516,1750207846408,-927.7123517,0.00023976,2]
[366357518,1750207846418,-4459.33898224,0.00024,7]
[366357678,1750208089111,4322.0,0.000246,120]
[366357682,1750208358203,162.240238,0.00013699,2]
[366357683,1750208372274,1000.0,0.00023,30]
[366357684,1750208388683,1000.0,0.00021918,60]
[366357686,1750208545348,424.91,0.00025158,120]
[366357687,1750208666075,221.5,0.00023,30]
[366357688,1750208735128,-5000.0,0.00019454,2]
[366357689,1750208735149,-263.00000327,0.00020246,2]
[366357690,1750208755085,-207.03436345,0.00020044,2]
[366357691,1750208821814,1514.76433238,0.00025158,120]
[366357692,1750208833079,-1764.83924054,0.00020044,2]
[366357693,1750208850088,-3028.12639601,0.00020044,2]
[366357694,1750208850110,-454.39,0.00020243,2]
[366357695,1750208850133,-161.77623661,0.00021817,2]
[366357696,1750208850155,-178.0,0.00021899,2]
[366357697,1750208850178,-150.0,0.000219,2]
[366357698,1750208850200,-465.15138494,0.000219,2]
[366357699,1750208850222,-300.0,0.00021915,2]
[366357700,1750208850244,-98.02316166,0.00021916,2]
[366357701,1750208852120,-167.10970661,0.00021916,2]
[366357702,1750208852141,-300.0,0.00021916,2]
[366357703,1750208852161,-161.021,0.00021916,2]
[366357704,1750208852181,-570.82162872,0.00021917,6]
[366357705,1750208852201,-460.0,0.00021917,6]
[366357706,1750208852221,-460.0,0.00021917,6]
[366357707,1750208852241,-386.11947404,0.00021917,6]
[366357708,1750208852262,-440.0,0.00021917,6]
[366357709,1750208852281,-372.48625507,0.00021917,6]
[366357710,1750208852302,-200.58955863,0.00021917,6]
[366357711,1750208852323,-460.0,0.00021917,6]
[366357712,1750208852343,-460.0,0.00021917,6]
[366357713,1750208852363,-460.0,0.00021917,6]
[366357714,1750208852383,-420.0,0.00021917,6]
[366357715,1750208852403,-394.92506051,0.00021917,6]
[366357716,1750208852423,-460.0,0.00021917,6]
[366357717,1750208852443,-460.0,0.00021917,6]
[366357718,1750208852463,-428.02812103,0.00021917,6]
[366357719,1750208852485,-460.0,0.00021917,6]
[366357720,1750208852507,-460.0,0.00021917,6]
[366357721,1750208852653,-460.0,0.00021917,6]
[366357722,1750208852676,-460.0,0.00021917,6]
[366357723,1750208852696,-507.87582283,0.00021917,6]
[366357724,1750208852716,-460.0,0.00021917,6]
[366357725,1750208852736,-460.0,0.00021917,6]
[366357726,1750208852757,-460.0,0.00021917,6]
[366357727,1750208852777,-440.0,0.00021917,6]
[366357728,1750208852797,-410.0,0.00021917,6]
[366357729,1750208852817,-291.15789632,0.00021917,6]
[366357730,1750208852838,-460.0,0.00021917,6]
[366357731,1750208852859,-460.0,0.00021917,6]
[366357732,1750208852878,-460.0,0.00021917,6]
[366357733,1750208852899,-440.0,0.00021917,6]
[366357734,1750208852919,-460.0,0.00021917,6]
[366357735,1750208852938,-460.0,0.00021917,6]
[366357736,1750208852958,-420.0,0.00021917,6]
[366357737,1750208852977,-460.0,0.00021917,6]
[366357738,1750208852997,-440.0,0.00021917,6]
[366357739,1750208853018,-440.0,0.00021917,6]
[366357740,1750208853039,-460.0,0.00021917,6]
[366357741,1750208853063,-430.0,0.00021917,6]
[366357742,1750208853085,-430.0,0.00021917,6]
[366357743,1750208853108,-460.0,0.00021917,6]
[366357744,1750208853130,-460.0,0.00021917,6]
[366357745,1750208853151,-460.0,0.00021917,6]
[366357746,1750208853173,-253.12376904,0.00021917,6]
[366357747,1750208853195,-460.0,0.00021917,6]
[366357748,1750208853216,-173.16803214,0.00021917,6]
[366357749,1750208853238,-430.0,0.00021917,6]
[366357750,1750208853260,-420.0,0.00021917,6]
[366357751,1750208853283,-430.0,0.00021917,6]
[366357752,1750208853304,-370.0,0.00021917,6]
[366357753,1750208853325,-430.0,0.00021917,6]
[366357754,1750208853346,-460.0,0.00021917,6]
[366357755,1750208853369,-460.0,0.00021917,6]
[366357756,1750208853391,-460.0,0.00021917,6]
[366357757,1750208853412,-420.0,0.00021917,6]
[366357758,1750208853434,-371.65732547,0.00021917,6]
[366357759,1750208853456,-305.23334353,0.00021917,6]
[366357760,1750208853478,-460.0,0.00021917,6]
[366357761,1750208853501,-460.0,0.00021917,6]
[366357762,1750208853524,-460.0,0.00021917,6]
[366357763,1750208853544,-440.0,0.00021917,6]
[366357764,1750208853565,-460.0,0.00021917,6]
[366357765,1750208853590,-440.0,0.00021917,6]
[366357766,1750208853611,-460.0,0.00021917,6]
[366357767,1750208853633,-460.0,0.00021917,6]
[366357768,1750208853655,-460.0,0.00021917,6]
[366357769,1750208853677,-511.92273979,0.00021917,6]
[366357770,1750208853698,-460.0,0.00021917,6]
[366357771,1750208853720,-440.0,0.00021917,6]
[366357772,1750208853741,-440.0,0.00021917,6]
[366357773,1750208853761,-361.88937681,0.00021917,6]
[366357774,1750208853782,-460.0,0.00021917,6]
[366357775,1750208853806,-460.0,0.00021917,6]
[366357776,1750208853829,-460.0,0.00021917,6]
[366357777,1750208853856,-440.0,0.00021917,6]
[366357778,1750208853879,-460.0,0.00021917,6]
[366357779,1750208853902,-460.0,0.00021917,6]
[366357780,1750208853925,-381.76793635,0.00021917,6]
[366357781,1750208853949,-460.0,0.00021917,6]
[366357782,1750208853970,-460.0,0.00021917,6]
[366357783,1750208853993,-460.0,0.00021917,6]
[366357784,1750208854015,-380.0,0.00021917,6]
[366357785,1750208854039,-440.0,0.00021917,6]
[366357786,1750208854066,-460.0,0.00021917,6]
[366357787,1750208854089,-440.0,0.00021917,6]
[366357788,1750208854111,-460.0,0.00021917,6]
[366357789,1750208854134,-440.0,0.00021917,6]
[366357790,1750208854156,-460.0,0.00021917,6]
[366357791,1750208854180,-440.0,0.00021917,6]
[366357792,1750208854204,-420.0,0.00021917,6]
[366357793,1750208854227,-420.0,0.00021917,6]
[366357794,1750208854250,-460.0,0.00021917,6]
[366357795,1750208854272,-152.52403429,0.00021917,6]
[366357796,1750208854299,-440.0,0.00021917,6]
[366357797,1750208854322,-430.0,0.00021917,6]
[366357798,1750208854346,-460.0,0.00021917,6]
[366357799,1750208854369,-440.0,0.00021917,6]
[366357800,1750208854391,-400.0,0.00021917,6]
[366357801,1750208854413,-460.0,0.00021917,6]
[366357802,1750208854434,-460.0,0.00021917,6]
[366357803,1750208854455,-460.0,0.00021917,6]
[366357804,1750208854478,-360.0,0.00021917,6]
[366357805,1750208854501,-460.0,0.00021917,6]
[366357806,1750208854523,-460.0,0.00021917,6]
[366357807,1750208854548,-460.0,0.00021917,6]
[366357808,1750208854570,-430.0,0.00021917,6]
[366357809,1750208854597,-430.0,0.00021917,6]
[366357810,1750208854622,-400.0,0.00021917,6]
[366357811,1750208854645,-460.0,0.00021917,6]
[366357812,1750208854668,-518.1523973,0.00021917,6]
[366357813,1750208854689,-460.0,0.00021917,6]
[366357814,1750208854711,-430.0,0.00021917,6]
[366357815,1750208854732,-460.0,0.00021917,6]
[366357816,1750208854754,-460.0,0.00021917,6]
[366357817,1750208854776,-460.0,0.00021917,6]
[366357818,1750208854798,-460.0,0.00021917,6]
[366357819,1750208854820,-420.0,0.00021917,6]
[366357820,1750208854841,-460.0,0.00021917,6]
[366357821,1750208854863,-420.0,0.00021917,6]
[366357822,1750208854883,-460.0,0.00021917,6]
[366357823,1750208854905,-400.0,0.00021917,6]
[366357824,1750208854926,-460.0,0.00021917,6]
[366357825,1750208854951,-460.0,0.00021917,6]
[366357826,1750208854972,-430.0,0.00021917,6]
[366357827,1750208854995,-545.34,0.00021917,6]